[Event "Titled Tuesday Blitz October 11 Early 2022"]
[White "Krzywda, Andrzej"]
[Black "Turutin, Alexander"]
[WhiteFideId "1114565"]
[BlackFideId "4180623"]
[WhiteElo "2149"]
[BlackElo "2402"]
[Result "1/2-1/2"]
[Round "10"]
[TimeControl "180+1"]
[Date "2022.10.12"]
[WhiteClock "0:00:08"]
[BlackClock "0:00:05"]

1. e4 {[%clk 0:03:00]}  c6 {[%clk 0:02:58]} 2. d4 {[%clk 0:03:00]}  d5 {[%clk 0:02:59]} 3. e5 {[%clk 0:03:00]}  c5 {[%clk 0:02:59]} 4. Nf3 {[%clk 0:03:00]}  cxd4 {[%clk 0:02:55]} 5. Nxd4 {[%clk 0:02:56]}  e6 {[%clk 0:02:54]} 6. Bd3 {[%clk 0:02:44]}  Ne7 {[%clk 0:02:40]} 7. O-O {[%clk 0:02:43]}  Nbc6 {[%clk 0:02:40]} 8. Nf3 {[%clk 0:02:38]}  Ng6 {[%clk 0:02:39]} 9. Re1 {[%clk 0:02:37]}  Bc5 {[%clk 0:02:28]} 10. Nbd2 {[%clk 0:02:31]}  O-O {[%clk 0:02:25]} 11. Nb3 {[%clk 0:02:30]}  Bb6 {[%clk 0:02:26]} 12. c3 {[%clk 0:02:30]}  f6 {[%clk 0:02:23]} 13. exf6 {[%clk 0:02:10]}  Qxf6 {[%clk 0:02:24]} 14. Bg5 {[%clk 0:02:06]}  Qf7 {[%clk 0:01:51]} 15. Qd2 {[%clk 0:01:48]}  e5 {[%clk 0:01:34]} 16. Bxg6 {[%clk 0:01:47]}  hxg6 {[%clk 0:01:05]} 17. Bh4 {[%clk 0:01:43]}  e4 {[%clk 0:00:56]} 18. Nfd4 {[%clk 0:01:36]}  Ne5 {[%clk 0:00:56]} 19. Nc1 {[%clk 0:01:25]}  Bg4 {[%clk 0:00:42]} 20. b3 {[%clk 0:01:20]}  Rac8 {[%clk 0:00:41]} 21. Bg3 {[%clk 0:01:17]}  Rfe8 {[%clk 0:00:24]} 22. Nce2 {[%clk 0:01:08]}  Nd3 {[%clk 0:00:23]} 23. Rf1 {[%clk 0:01:05]}  Rf8 {[%clk 0:00:21]} 24. Nc1 {[%clk 0:00:52]}  Bxd4 {[%clk 0:00:16]} 25. cxd4 {[%clk 0:00:49]}  Bf5 {[%clk 0:00:13]} 26. Nxd3 {[%clk 0:00:42]}  exd3 {[%clk 0:00:14]} 27. Rac1 {[%clk 0:00:42]}  Rc2 {[%clk 0:00:14]} 28. Qg5 {[%clk 0:00:33]}  Rfc8 {[%clk 0:00:14]} 29. Rcd1 {[%clk 0:00:32]}  Qf6 {[%clk 0:00:13]} 30. Qf4 {[%clk 0:00:31]}  Be4 {[%clk 0:00:12]} 31. Qg4 {[%clk 0:00:29]}  Bf5 {[%clk 0:00:09]} 32. Qf4 {[%clk 0:00:29]}  Re2 {[%clk 0:00:09]} 33. Bh4 {[%clk 0:00:24]}  Qe6 {[%clk 0:00:08]} 34. Bg5 {[%clk 0:00:20]}  Rcc2 {[%clk 0:00:08]} 35. Qh4 {[%clk 0:00:20]}  Qe4 {[%clk 0:00:05]} 36. Qg3 {[%clk 0:00:19]}  Kf7 {[%clk 0:00:04]} 37. Qb8 {[%clk 0:00:18]}  Bh3 {[%clk 0:00:02]} 38. Qxb7+ {[%clk 0:00:18]}  Kg8 {[%clk 0:00:02]} 39. Qb8+ {[%clk 0:00:18]}  Bc8 {[%clk 0:00:01]} 40. Qg3 {[%clk 0:00:19]}  Kf7 {[%clk 0:00:01]} 41. Be3 {[%clk 0:00:17]}  Qf5 {[%clk 0:00:01]} 42. h4 {[%clk 0:00:12]}  Kg8 {[%clk 0:00:02]} 43. Qd6 {[%clk 0:00:10]}  Kh7 {[%clk 0:00:02]} 44. Qg3 {[%clk 0:00:10]}  Qe4 {[%clk 0:00:03]} 45. h5 {[%clk 0:00:10]}  Bf5 {[%clk 0:00:03]} 46. h6 {[%clk 0:00:09]}  gxh6 {[%clk 0:00:03]} 47. Qh2 {[%clk 0:00:10]}  Qe6 {[%clk 0:00:03]} 48. Qxh6+ {[%clk 0:00:10]}  Kg8 {[%clk 0:00:03]} 49. Qg5 {[%clk 0:00:10]}  Be4 {[%clk 0:00:03]} 50. Qg3 {[%clk 0:00:10]}  Kg7 {[%clk 0:00:03]} 51. Qf4 {[%clk 0:00:10]}  Qf5 {[%clk 0:00:03]} 52. Qh6+ {[%clk 0:00:11]}  Kg8 {[%clk 0:00:03]} 53. Qh2 {[%clk 0:00:11]}  Qg4 {[%clk 0:00:03]} 54. Qb8+ {[%clk 0:00:11]}  Kf7 {[%clk 0:00:03]} 55. Qxa7+ {[%clk 0:00:12]}  Kf6 {[%clk 0:00:03]} 56. Qb6+ {[%clk 0:00:10]}  Kg7 {[%clk 0:00:04]} 57. Qa7+ {[%clk 0:00:10]}  Kf6 {[%clk 0:00:04]} 58. Qb6+ {[%clk 0:00:10]}  Kg7 {[%clk 0:00:05]} 59. Qa7+ {[%clk 0:00:08]}  Kf6 {[%clk 0:00:05]} 1/2-1/2


[Site "https://www.chess.com"]

[Event "Titled Tuesday Blitz October 11 Early 2022"]
[White "Kuznetsova, Olga"]
[Black "Skliarov, Viktor"]
[WhiteFideId "4191323"]
[BlackFideId "14106736"]
[WhiteElo "2134"]
[BlackElo "2284"]
[Result "1-0"]
[Round "10"]
[TimeControl "180+1"]
[Date "2022.10.12"]
[WhiteClock "0:00:37"]
[BlackClock "0:00:14"]

1. d4 {[%clk 0:02:56]}  Nf6 {[%clk 0:03:00]} 2. g3 {[%clk 0:02:56]}  g6 {[%clk 0:02:59]} 3. Bg2 {[%clk 0:02:56]}  Bg7 {[%clk 0:02:59]} 4. e4 {[%clk 0:02:56]}  d6 {[%clk 0:02:58]} 5. Nc3 {[%clk 0:02:56]}  O-O {[%clk 0:02:52]} 6. h3 {[%clk 0:02:56]}  c5 {[%clk 0:02:50]} 7. dxc5 {[%clk 0:02:55]}  dxc5 {[%clk 0:02:50]} 8. Be3 {[%clk 0:02:55]}  Qa5 {[%clk 0:02:45]} 9. Ne2 {[%clk 0:02:56]}  Rd8 {[%clk 0:02:43]} 10. Qc1 {[%clk 0:02:55]}  Nc6 {[%clk 0:02:40]} 11. O-O {[%clk 0:02:55]}  Nd4 {[%clk 0:02:40]} 12. Rd1 {[%clk 0:02:46]}  Nxe2+ {[%clk 0:02:40]} 13. Nxe2 {[%clk 0:02:45]}  Be6 {[%clk 0:02:39]} 14. c3 {[%clk 0:02:40]}  Rxd1+ {[%clk 0:02:14]} 15. Qxd1 {[%clk 0:02:40]}  Rd8 {[%clk 0:02:15]} 16. Qc2 {[%clk 0:02:37]}  Bc4 {[%clk 0:02:13]} 17. Rd1 {[%clk 0:01:40]}  Nd7 {[%clk 0:01:02]} 18. a3 {[%clk 0:01:28]}  Qb5 {[%clk 0:00:55]} 19. Nc1 {[%clk 0:01:27]}  Be6 {[%clk 0:00:49]} 20. Bf1 {[%clk 0:01:18]}  Qc6 {[%clk 0:00:44]} 21. Bg2 {[%clk 0:01:16]}  h5 {[%clk 0:00:39]} 22. Qe2 {[%clk 0:01:11]}  Rc8 {[%clk 0:00:37]} 23. Nd3 {[%clk 0:01:05]}  Bc4 {[%clk 0:00:36]} 24. Qd2 {[%clk 0:01:02]}  b6 {[%clk 0:00:35]} 25. Nf4 {[%clk 0:01:02]}  Ne5 {[%clk 0:00:34]} 26. Nd5 {[%clk 0:01:03]}  Re8 {[%clk 0:00:34]} 27. Qc2 {[%clk 0:00:58]}  Qb7 {[%clk 0:00:26]} 28. b3 {[%clk 0:00:57]}  Bb5 {[%clk 0:00:25]} 29. f4 {[%clk 0:00:54]}  Nd7 {[%clk 0:00:24]} 30. c4 {[%clk 0:00:52]}  Bc6 {[%clk 0:00:24]} 31. e5 {[%clk 0:00:51]}  e6 {[%clk 0:00:24]} 32. Nc3 {[%clk 0:00:51]}  Bxg2 {[%clk 0:00:24]} 33. Qxg2 {[%clk 0:00:52]}  Qxg2+ {[%clk 0:00:24]} 34. Kxg2 {[%clk 0:00:53]}  Rd8 {[%clk 0:00:23]} 35. Ne4 {[%clk 0:00:50]}  Kf8 {[%clk 0:00:21]} 36. b4 {[%clk 0:00:50]}  cxb4 {[%clk 0:00:21]} 37. axb4 {[%clk 0:00:50]}  Ke7 {[%clk 0:00:21]} 38. c5 {[%clk 0:00:51]}  bxc5 {[%clk 0:00:21]} 39. bxc5 {[%clk 0:00:51]}  Nb8 {[%clk 0:00:21]} 40. Rb1 {[%clk 0:00:51]}  Nc6 {[%clk 0:00:21]} 41. Nd6 {[%clk 0:00:49]}  Rd7 {[%clk 0:00:20]} 42. Kf3 {[%clk 0:00:47]}  g5 {[%clk 0:00:20]} 43. Ke4 {[%clk 0:00:47]}  f5+ {[%clk 0:00:19]} 44. exf6+ {[%clk 0:00:46]}  Bxf6 {[%clk 0:00:18]} 45. fxg5 {[%clk 0:00:47]}  Bg7 {[%clk 0:00:17]} 46. Rf1 {[%clk 0:00:45]}  Nd8 {[%clk 0:00:16]} 47. g6 {[%clk 0:00:43]}  Bf6 {[%clk 0:00:16]} 48. Nc8+ {[%clk 0:00:37]}  Ke8 {[%clk 0:00:14]} 49. Rxf6 {[%clk 0:00:37]} 1-0


[Site "https://www.chess.com"]

[Event "Titled Tuesday Blitz October 11 Early 2022"]
[White "Laohawirapap, Prin"]
[Black "Orzech, Dominik"]
[WhiteFideId "6205003"]
[BlackFideId "1115065"]
[WhiteElo "2113"]
[BlackElo "2272"]
[Result "1-0"]
[Round "10"]
[TimeControl "180+1"]
[Date "2022.10.12"]
[WhiteClock "0:00:11"]
[BlackClock "0:00:04"]

1. e4 {[%clk 0:03:00]}  c6 {[%clk 0:02:58]} 2. d4 {[%clk 0:03:00]}  d5 {[%clk 0:02:58]} 3. exd5 {[%clk 0:03:00]}  cxd5 {[%clk 0:02:58]} 4. Bd3 {[%clk 0:03:00]}  Nf6 {[%clk 0:02:57]} 5. c3 {[%clk 0:03:00]}  Nc6 {[%clk 0:02:55]} 6. Bf4 {[%clk 0:03:00]}  Bg4 {[%clk 0:02:54]} 7. Qb3 {[%clk 0:02:59]}  Qd7 {[%clk 0:02:44]} 8. Nd2 {[%clk 0:02:59]}  e6 {[%clk 0:02:38]} 9. Ngf3 {[%clk 0:02:51]}  Bd6 {[%clk 0:02:32]} 10. Bxd6 {[%clk 0:02:48]}  Qxd6 {[%clk 0:02:33]} 11. O-O {[%clk 0:02:49]}  O-O {[%clk 0:02:31]} 12. Rae1 {[%clk 0:02:48]}  Nd7 {[%clk 0:02:27]} 13. Qc2 {[%clk 0:02:41]}  Kh8 {[%clk 0:02:15]} 14. Bxh7 {[%clk 0:02:05]}  g6 {[%clk 0:02:11]} 15. Bxg6 {[%clk 0:01:54]}  fxg6 {[%clk 0:02:12]} 16. Qxg6 {[%clk 0:01:55]}  Bf5 {[%clk 0:02:10]} 17. Qh6+ {[%clk 0:01:54]}  Kg8 {[%clk 0:02:10]} 18. Ng5 {[%clk 0:01:49]}  Rf6 {[%clk 0:02:07]} 19. Qh5 {[%clk 0:01:43]}  Raf8 {[%clk 0:02:02]} 20. Re3 {[%clk 0:01:42]}  Bg6 {[%clk 0:01:58]} 21. Qh6 {[%clk 0:01:37]}  Bd3 {[%clk 0:01:56]} 22. Qh4 {[%clk 0:01:22]}  Rf4 {[%clk 0:01:51]} 23. Qh5 {[%clk 0:01:17]}  Nf6 {[%clk 0:01:45]} 24. Qh6 {[%clk 0:01:17]}  Ng4 {[%clk 0:01:41]} 25. Qxe6+ {[%clk 0:00:54]}  Qxe6 {[%clk 0:01:39]} 26. Rxe6 {[%clk 0:00:52]}  Bxf1 {[%clk 0:01:37]} 27. Nxf1 {[%clk 0:00:47]}  Rxf2 {[%clk 0:01:30]} 28. Ng3 {[%clk 0:00:40]}  Rxb2 {[%clk 0:01:27]} 29. Nf3 {[%clk 0:00:36]}  Rb1+ {[%clk 0:01:21]} 30. Nf1 {[%clk 0:00:35]}  Rf6 {[%clk 0:01:21]} 31. Re8+ {[%clk 0:00:34]}  Kf7 {[%clk 0:01:19]} 32. Re2 {[%clk 0:00:34]}  Kg7 {[%clk 0:01:12]} 33. h3 {[%clk 0:00:33]}  Nh6 {[%clk 0:01:10]} 34. Kf2 {[%clk 0:00:29]}  Nf7 {[%clk 0:01:04]} 35. Ne3 {[%clk 0:00:26]}  Re6 {[%clk 0:00:57]} 36. g4 {[%clk 0:00:21]}  Kf6 {[%clk 0:00:55]} 37. Nxd5+ {[%clk 0:00:20]}  Kg7 {[%clk 0:00:50]} 38. Rxe6 {[%clk 0:00:20]}  Rb2+ {[%clk 0:00:50]} 39. Re2 {[%clk 0:00:20]}  Rb1 {[%clk 0:00:46]} 40. Nf4 {[%clk 0:00:20]}  Kf6 {[%clk 0:00:45]} 41. d5 {[%clk 0:00:18]}  Nce5 {[%clk 0:00:43]} 42. Nxe5 {[%clk 0:00:11]}  Nxe5 {[%clk 0:00:44]} 43. Nh5+ {[%clk 0:00:11]}  Kg6 {[%clk 0:00:43]} 44. Rxe5 {[%clk 0:00:11]}  Rb2+ {[%clk 0:00:19]} 45. Kg3 {[%clk 0:00:11]}  Kh6 {[%clk 0:00:14]} 46. Re6+ {[%clk 0:00:11]}  Kg5 {[%clk 0:00:04]} 47. h4# {[%clk 0:00:11]} 1-0


[Site "https://www.chess.com"]

[Event "Titled Tuesday Blitz October 11 Early 2022"]
[White "Lazavik, Denis"]
[Black "Weetik, Vjacheslav"]
[WhiteFideId "13515110"]
[BlackFideId "4153472"]
[WhiteElo "2437"]
[BlackElo "2469"]
[Result "1-0"]
[Round "10"]
[TimeControl "180+1"]
[Date "2022.10.11"]
[WhiteClock "0:00:07"]
[BlackClock "0:00:07"]

1. d4 {[%clk 0:03:00]}  Nf6 {[%clk 0:02:59]} 2. c4 {[%clk 0:03:01]}  g6 {[%clk 0:03:00]} 3. g3 {[%clk 0:03:01]}  c6 {[%clk 0:03:00]} 4. Nf3 {[%clk 0:02:58]}  d5 {[%clk 0:03:00]} 5. Bg2 {[%clk 0:02:56]}  Bg7 {[%clk 0:03:00]} 6. O-O {[%clk 0:02:54]}  O-O {[%clk 0:03:00]} 7. Qb3 {[%clk 0:02:54]}  Qb6 {[%clk 0:02:56]} 8. Nc3 {[%clk 0:02:54]}  Rd8 {[%clk 0:02:56]} 9. Bf4 {[%clk 0:02:54]}  dxc4 {[%clk 0:02:18]} 10. Qxc4 {[%clk 0:02:53]}  Qxb2 {[%clk 0:02:06]} 11. Ng5 {[%clk 0:02:32]}  e6 {[%clk 0:02:00]} 12. Bc7 {[%clk 0:02:06]}  Re8 {[%clk 0:01:40]} 13. e4 {[%clk 0:01:49]}  b5 {[%clk 0:01:25]} 14. Qd3 {[%clk 0:01:45]}  b4 {[%clk 0:01:23]} 15. Na4 {[%clk 0:01:43]}  Qa3 {[%clk 0:01:22]} 16. Qxa3 {[%clk 0:01:41]}  bxa3 {[%clk 0:01:22]} 17. e5 {[%clk 0:01:24]}  Nd5 {[%clk 0:01:21]} 18. Bd6 {[%clk 0:01:25]}  f6 {[%clk 0:01:05]} 19. Ne4 {[%clk 0:01:23]}  Nd7 {[%clk 0:00:55]} 20. f4 {[%clk 0:01:16]}  Ne3 {[%clk 0:00:35]} 21. Rfc1 {[%clk 0:01:14]}  Ba6 {[%clk 0:00:27]} 22. Bxa3 {[%clk 0:00:49]}  Bc4 {[%clk 0:00:23]} 23. Nd6 {[%clk 0:00:46]}  Bd5 {[%clk 0:00:19]} 24. Bxd5 {[%clk 0:00:45]}  cxd5 {[%clk 0:00:19]} 25. Nxe8 {[%clk 0:00:45]}  Rxe8 {[%clk 0:00:19]} 26. Rc7 {[%clk 0:00:45]}  Nb6 {[%clk 0:00:14]} 27. Nxb6 {[%clk 0:00:33]}  axb6 {[%clk 0:00:14]} 28. Re1 {[%clk 0:00:26]}  Nc4 {[%clk 0:00:15]} 29. Bb4 {[%clk 0:00:26]}  fxe5 {[%clk 0:00:15]} 30. fxe5 {[%clk 0:00:26]}  Bh6 {[%clk 0:00:16]} 31. Kg2 {[%clk 0:00:24]}  Ra8 {[%clk 0:00:15]} 32. a3 {[%clk 0:00:23]}  Ne3+ {[%clk 0:00:14]} 33. Kh3 {[%clk 0:00:22]}  Nf5 {[%clk 0:00:14]} 34. Rd1 {[%clk 0:00:20]}  Be3 {[%clk 0:00:15]} 35. Rd3 {[%clk 0:00:15]}  h5 {[%clk 0:00:14]} 36. Rc6 {[%clk 0:00:15]}  Kf7 {[%clk 0:00:10]} 37. Rxb6 {[%clk 0:00:15]}  g5 {[%clk 0:00:11]} 38. Rb7+ {[%clk 0:00:13]}  Kg6 {[%clk 0:00:11]} 39. Rb6 {[%clk 0:00:13]}  Kf7 {[%clk 0:00:11]} 40. Rc3 {[%clk 0:00:14]}  g4+ {[%clk 0:00:09]} 41. Kg2 {[%clk 0:00:14]}  Bxd4 {[%clk 0:00:09]} 42. Rc7+ {[%clk 0:00:14]}  Kg6 {[%clk 0:00:05]} 43. Rxe6+ {[%clk 0:00:14]}  Kg5 {[%clk 0:00:06]} 44. Bd2+ {[%clk 0:00:10]}  Be3 {[%clk 0:00:06]} 45. Bxe3+ {[%clk 0:00:08]}  Nxe3+ {[%clk 0:00:07]} 46. Kf2 {[%clk 0:00:08]}  Rxa3 {[%clk 0:00:08]} 47. Rf6 {[%clk 0:00:07]}  Nf5 {[%clk 0:00:06]} 48. Rcf7 {[%clk 0:00:07]}  Ra2+ {[%clk 0:00:07]} 49. Ke1 {[%clk 0:00:07]}  Nd4 {[%clk 0:00:07]} 50. Rg7# {[%clk 0:00:07]} 1-0


[Site "https://www.chess.com"]

[Event "Titled Tuesday Blitz October 11 Early 2022"]
[White "Lewtak, Damian"]
[Black "Tiarks, Jann-Christian"]
[WhiteFideId "1141724"]
[BlackFideId "12951595"]
[WhiteElo "2329"]
[BlackElo "2194"]
[Result "1-0"]
[Round "10"]
[TimeControl "180+1"]
[Date "2022.10.12"]
[WhiteClock "0:01:44"]
[BlackClock "0:01:50"]

1. b3 {[%clk 0:03:00]}  a5 {[%clk 0:02:57]} 2. Bb2 {[%clk 0:02:59]}  a4 {[%clk 0:02:57]} 3. g3 {[%clk 0:02:59]}  e6 {[%clk 0:02:57]} 4. Bg2 {[%clk 0:02:59]}  a3 {[%clk 0:02:57]} 5. Bc1 {[%clk 0:02:59]}  d5 {[%clk 0:02:56]} 6. d4 {[%clk 0:02:58]}  Nf6 {[%clk 0:02:54]} 7. Nd2 {[%clk 0:02:58]}  Bb4 {[%clk 0:02:52]} 8. Rb1 {[%clk 0:02:57]}  O-O {[%clk 0:02:47]} 9. e3 {[%clk 0:02:58]}  c5 {[%clk 0:02:45]} 10. Ne2 {[%clk 0:02:57]}  cxd4 {[%clk 0:02:44]} 11. exd4 {[%clk 0:02:58]}  Nc6 {[%clk 0:02:40]} 12. c3 {[%clk 0:02:58]}  Be7 {[%clk 0:02:39]} 13. O-O {[%clk 0:02:58]}  b6 {[%clk 0:02:37]} 14. Re1 {[%clk 0:02:58]}  Ba6 {[%clk 0:02:37]} 15. Nf4 {[%clk 0:02:55]}  Qc7 {[%clk 0:02:34]} 16. Bf1 {[%clk 0:02:43]}  Bxf1 {[%clk 0:02:27]} 17. Nxf1 {[%clk 0:02:44]}  Ne4 {[%clk 0:02:26]} 18. Bd2 {[%clk 0:02:42]}  Na5 {[%clk 0:02:19]} 19. Rc1 {[%clk 0:02:36]}  Rac8 {[%clk 0:02:18]} 20. c4 {[%clk 0:02:29]}  Nxd2 {[%clk 0:02:18]} 21. Qxd2 {[%clk 0:02:29]}  dxc4 {[%clk 0:02:16]} 22. Ne3 {[%clk 0:02:24]}  c3 {[%clk 0:02:15]} 23. Qd3 {[%clk 0:02:22]}  Rfd8 {[%clk 0:02:10]} 24. Ne2 {[%clk 0:02:15]}  Bb4 {[%clk 0:02:04]} 25. Nc2 {[%clk 0:02:15]}  Qe7 {[%clk 0:02:01]} 26. Nxb4 {[%clk 0:02:14]}  Qxb4 {[%clk 0:02:02]} 27. Red1 {[%clk 0:02:07]}  e5 {[%clk 0:01:58]} 28. d5 {[%clk 0:02:03]}  Rc5 {[%clk 0:01:58]} 29. d6 {[%clk 0:02:02]}  Rc6 {[%clk 0:01:57]} 30. d7 {[%clk 0:02:01]}  Rc7 {[%clk 0:01:57]} 31. Rxc3 {[%clk 0:01:58]}  Rcxd7 {[%clk 0:01:49]} 32. Qxd7 {[%clk 0:01:45]}  Rxd7 {[%clk 0:01:50]} 33. Rc8+ {[%clk 0:01:44]} 1-0


[Site "https://www.chess.com"]

[Event "Titled Tuesday Blitz October 11 Early 2022"]
[White "Lopez, Henry"]
[Black "Tristan, Leonardo"]
[WhiteFideId "5203830"]
[BlackFideId "113816"]
[WhiteElo "2177"]
[BlackElo "2446"]
[Result "0-1"]
[Round "10"]
[TimeControl "180+1"]
[Date "2022.10.12"]
[WhiteClock "0:00:13"]
[BlackClock "0:00:13"]

1. d4 {[%clk 0:03:00]}  d5 {[%clk 0:03:00]} 2. Nf3 {[%clk 0:02:59]}  Nf6 {[%clk 0:03:00]} 3. c4 {[%clk 0:02:59]}  e6 {[%clk 0:03:00]} 4. Nc3 {[%clk 0:02:59]}  a6 {[%clk 0:03:00]} 5. cxd5 {[%clk 0:02:55]}  exd5 {[%clk 0:03:01]} 6. Bg5 {[%clk 0:02:55]}  Be6 {[%clk 0:03:02]} 7. e3 {[%clk 0:02:55]}  Nbd7 {[%clk 0:03:02]} 8. Bd3 {[%clk 0:02:55]}  Bd6 {[%clk 0:03:02]} 9. Rc1 {[%clk 0:02:53]}  c6 {[%clk 0:03:02]} 10. O-O {[%clk 0:02:53]}  Qc7 {[%clk 0:03:03]} 11. Bh4 {[%clk 0:02:50]}  h6 {[%clk 0:03:03]} 12. Bg3 {[%clk 0:02:49]}  Bxg3 {[%clk 0:03:04]} 13. hxg3 {[%clk 0:02:49]}  Qd6 {[%clk 0:03:04]} 14. Qc2 {[%clk 0:02:46]}  O-O {[%clk 0:03:04]} 15. Rfe1 {[%clk 0:02:45]}  Rfe8 {[%clk 0:03:04]} 16. Rcd1 {[%clk 0:02:42]}  Bg4 {[%clk 0:03:04]} 17. Bf5 {[%clk 0:02:36]}  Bxf5 {[%clk 0:03:00]} 18. Qxf5 {[%clk 0:02:35]}  Ne4 {[%clk 0:03:00]} 19. Nxe4 {[%clk 0:02:28]}  Rxe4 {[%clk 0:02:55]} 20. Nd2 {[%clk 0:02:27]}  Re6 {[%clk 0:02:55]} 21. Qc2 {[%clk 0:02:25]}  Rae8 {[%clk 0:02:55]} 22. Nf3 {[%clk 0:02:24]}  Nf6 {[%clk 0:02:47]} 23. Ne5 {[%clk 0:02:22]}  Ne4 {[%clk 0:02:47]} 24. a3 {[%clk 0:02:12]}  f6 {[%clk 0:02:45]} 25. Ng6 {[%clk 0:02:08]}  Kf7 {[%clk 0:02:41]} 26. Nf4 {[%clk 0:02:07]}  R6e7 {[%clk 0:02:41]} 27. Qe2 {[%clk 0:02:06]}  g6 {[%clk 0:02:38]} 28. Qg4 {[%clk 0:02:00]}  Rg8 {[%clk 0:02:26]} 29. Nd3 {[%clk 0:01:55]}  h5 {[%clk 0:02:23]} 30. Qf4 {[%clk 0:01:52]}  Qxf4 {[%clk 0:02:09]} 31. gxf4 {[%clk 0:01:51]}  h4 {[%clk 0:01:50]} 32. f3 {[%clk 0:01:41]}  Ng3 {[%clk 0:01:47]} 33. Kf2 {[%clk 0:01:38]}  Rge8 {[%clk 0:01:47]} 34. Nb4 {[%clk 0:01:32]}  a5 {[%clk 0:01:41]} 35. Nc2 {[%clk 0:01:32]}  g5 {[%clk 0:01:41]} 36. fxg5 {[%clk 0:01:27]}  fxg5 {[%clk 0:01:41]} 37. Rc1 {[%clk 0:01:15]}  Kg6 {[%clk 0:01:41]} 38. b4 {[%clk 0:01:08]}  axb4 {[%clk 0:01:37]} 39. axb4 {[%clk 0:01:07]}  Rf8 {[%clk 0:01:18]} 40. Kg1 {[%clk 0:01:03]}  g4 {[%clk 0:01:15]} 41. f4 {[%clk 0:00:56]}  Rfe8 {[%clk 0:01:06]} 42. b5 {[%clk 0:00:54]}  cxb5 {[%clk 0:00:59]} 43. Nb4 {[%clk 0:00:47]}  Rxe3 {[%clk 0:00:58]} 44. Rxe3 {[%clk 0:00:45]}  Rxe3 {[%clk 0:00:58]} 45. Nxd5 {[%clk 0:00:41]}  Rd3 {[%clk 0:00:57]} 46. Rc7 {[%clk 0:00:36]}  Rd1+ {[%clk 0:00:56]} 47. Kf2 {[%clk 0:00:36]}  Rxd4 {[%clk 0:00:51]} 48. Ne7+ {[%clk 0:00:31]}  Kf6 {[%clk 0:00:45]} 49. Rxb7 {[%clk 0:00:29]}  Rxf4+ {[%clk 0:00:44]} 50. Ke3 {[%clk 0:00:29]}  Rf1 {[%clk 0:00:40]} 51. Nd5+ {[%clk 0:00:28]}  Kg5 {[%clk 0:00:28]} 52. Rxb5 {[%clk 0:00:26]}  Rf5 {[%clk 0:00:26]} 53. Kd4 {[%clk 0:00:24]}  h3 {[%clk 0:00:21]} 54. gxh3 {[%clk 0:00:25]}  gxh3 {[%clk 0:00:22]} 55. Rb3 {[%clk 0:00:24]}  h2 {[%clk 0:00:13]} 56. Rxg3+ {[%clk 0:00:19]}  Kh4 {[%clk 0:00:14]} 57. Rg8 {[%clk 0:00:12]}  h1=Q {[%clk 0:00:13]} 58. Rh8+ {[%clk 0:00:13]}  Rh5 {[%clk 0:00:13]} 0-1


[Site "https://www.chess.com"]

[Event "Titled Tuesday Blitz October 11 Early 2022"]
[White "Luxama, Jacques Muller"]
[Black "Ziatdinov, Raset"]
[WhiteFideId "11900113"]
[BlackFideId "2015323"]
[WhiteElo "1931"]
[BlackElo "2220"]
[Result "1-0"]
[Round "10"]
[TimeControl "180+1"]
[Date "2022.10.12"]
[WhiteClock "0:01:55"]
[BlackClock "0:01:32"]

1. d4 {[%clk 0:02:59]}  Nf6 {[%clk 0:02:56]} 2. c4 {[%clk 0:02:58]}  g6 {[%clk 0:02:53]} 3. Nc3 {[%clk 0:02:55]}  Bg7 {[%clk 0:02:52]} 4. g3 {[%clk 0:02:53]}  O-O {[%clk 0:02:50]} 5. Bg2 {[%clk 0:02:53]}  d6 {[%clk 0:02:51]} 6. Bf3 {[%clk 0:02:51]}  Nc6 {[%clk 0:02:49]} 7. Bg2 {[%clk 0:02:50]}  e5 {[%clk 0:02:49]} 8. d5 {[%clk 0:02:49]}  Ne7 {[%clk 0:02:47]} 9. Nf3 {[%clk 0:02:50]}  Nd7 {[%clk 0:02:44]} 10. O-O {[%clk 0:02:48]}  f5 {[%clk 0:02:44]} 11. Ng5 {[%clk 0:02:48]}  Nf6 {[%clk 0:02:40]} 12. e4 {[%clk 0:02:47]}  h6 {[%clk 0:02:38]} 13. Ne6 {[%clk 0:02:46]}  Bxe6 {[%clk 0:02:38]} 14. dxe6 {[%clk 0:02:47]}  Kh7 {[%clk 0:02:25]} 15. b3 {[%clk 0:02:44]}  c6 {[%clk 0:02:20]} 16. Ba3 {[%clk 0:02:42]}  Nc8 {[%clk 0:02:17]} 17. Qd3 {[%clk 0:02:31]}  f4 {[%clk 0:02:14]} 18. Rad1 {[%clk 0:02:24]}  Qa5 {[%clk 0:01:57]} 19. Bxd6 {[%clk 0:02:19]}  Nxd6 {[%clk 0:01:56]} 20. b4 {[%clk 0:02:12]}  Qxb4 {[%clk 0:01:55]} 21. Qxd6 {[%clk 0:02:08]}  Qxc3 {[%clk 0:01:53]} 22. e7 {[%clk 0:02:08]}  Rf7 {[%clk 0:01:47]} 23. gxf4 {[%clk 0:02:07]}  Ne8 {[%clk 0:01:37]} 24. Qe6 {[%clk 0:02:03]}  Rxf4 {[%clk 0:01:35]} 25. Rd8 {[%clk 0:01:58]}  Nc7 {[%clk 0:01:32]} 26. Qg8# {[%clk 0:01:55]} 1-0


[Site "https://www.chess.com"]

[Event "Titled Tuesday Blitz October 11 Early 2022"]
[White "Machidon, Cristi"]
[Black "Pakleza, Zbigniew"]
[WhiteFideId "13904590"]
[BlackFideId "1119290"]
[WhiteElo "2312"]
[BlackElo "2411"]
[Result "1/2-1/2"]
[Round "10"]
[TimeControl "180+1"]
[Date "2022.10.11"]
[WhiteClock "0:01:11"]
[BlackClock "0:00:14"]

1. d4 {[%clk 0:03:00]}  d6 {[%clk 0:02:57]} 2. c4 {[%clk 0:03:00]}  e5 {[%clk 0:02:57]} 3. Nf3 {[%clk 0:03:00]}  exd4 {[%clk 0:02:57]} 4. Nxd4 {[%clk 0:03:00]}  g6 {[%clk 0:02:55]} 5. Nc3 {[%clk 0:03:00]}  Bg7 {[%clk 0:02:55]} 6. e4 {[%clk 0:03:00]}  Ne7 {[%clk 0:02:55]} 7. Be2 {[%clk 0:02:57]}  O-O {[%clk 0:02:54]} 8. O-O {[%clk 0:02:49]}  Nbc6 {[%clk 0:02:53]} 9. Be3 {[%clk 0:02:49]}  f5 {[%clk 0:02:53]} 10. exf5 {[%clk 0:02:40]}  Bxd4 {[%clk 0:02:51]} 11. Bxd4 {[%clk 0:02:41]}  Nxf5 {[%clk 0:02:51]} 12. Be3 {[%clk 0:02:39]}  Nxe3 {[%clk 0:02:51]} 13. fxe3 {[%clk 0:02:40]}  Rxf1+ {[%clk 0:02:49]} 14. Bxf1 {[%clk 0:02:38]}  Be6 {[%clk 0:02:42]} 15. a3 {[%clk 0:02:32]}  Qg5 {[%clk 0:02:35]} 16. Qd2 {[%clk 0:02:31]}  Ne5 {[%clk 0:02:29]} 17. Ne4 {[%clk 0:02:21]}  Nf3+ {[%clk 0:01:29]} 18. Kh1 {[%clk 0:02:16]}  Nxd2 {[%clk 0:01:29]} 19. Nxg5 {[%clk 0:02:16]}  Bxc4 {[%clk 0:01:28]} 20. Bxc4+ {[%clk 0:02:15]}  Nxc4 {[%clk 0:01:29]} 21. Rc1 {[%clk 0:02:14]}  b5 {[%clk 0:00:58]} 22. b3 {[%clk 0:02:14]}  Nxa3 {[%clk 0:00:58]} 23. Rxc7 {[%clk 0:02:13]}  a5 {[%clk 0:00:59]} 24. Nxh7 {[%clk 0:02:12]}  a4 {[%clk 0:00:38]} 25. Nf6+ {[%clk 0:02:11]}  Kf8 {[%clk 0:00:38]} 26. bxa4 {[%clk 0:02:07]}  bxa4 {[%clk 0:00:37]} 27. Nd7+ {[%clk 0:01:11]}  Ke8 {[%clk 0:00:33]} 28. Nf6+ {[%clk 0:01:11]}  Kf8 {[%clk 0:00:34]} 29. Nd7+ {[%clk 0:01:11]}  Ke8 {[%clk 0:00:34]} 30. Nf6+ {[%clk 0:01:11]}  Kf8 {[%clk 0:00:14]} 1/2-1/2


[Site "https://www.chess.com"]